[Event "4NCL Div 1 2024-25"]
[Site "England"]
[Date "2025.02.15"]
[Round "5.37"]
[White "Navrotescu, Andreea"]
[Black "Mirzoeva, Elmira"]
[Result "0-1"]
[Annotator "ChessBase"]
[ECO "A21"]
[WhiteElo "2338"]
[BlackElo "2258"]
[PlyCount "176"]
[EventDate "2024.11.23"]
[EventType "team-tourn"]
[EventCountry "ENG"]
[SourceTitle "playchess.com"]
[Source "ChessBase"]
[SourceQuality "1"]
[TimeControl "40/6000+30:3000+30"]

1. c4 {[%emt 0:10:07]} e5 {[%emt 0:11:48]} 2. Nc3 {[%emt 0:00:13]} d6 {[%emt 0:00:12]} 3. g3 {[%emt 0:01:34]} f5 {[%emt 0:02:46]} 4. d4 {[%emt 0:00:26]} e4 {[%emt 0:01:19]} 5. h4 {[%emt 0:08:02]} Nf6 {[%emt 0:01:27]} 6. Nh3 {[%emt 0:05:25]} Be7 {[%emt 0:11:53]} 7. Bg5 {[%emt 0:03:35]} c6 {[%emt 0:23:09]} 8. e3 {[%emt 0:04:16]} Na6 {[%emt 0:00:56]} 9. Nf4 {[%emt 0:01:32]} Nc7 {[%emt 0:01:20]} 10. Qb3 {[%emt 0:23:05]} Rb8 {[%emt 0:07:29]} 11. d5 {[%emt 0:11:30]} Bd7 {[%emt 0:08:26]} 12. Be2 {[%emt 0:01:10]} c5 {[%emt 0:08:12]} 13. a4 {[%emt 0:07:07]} O-O {[%emt 0:05:04]} 14. O-O {[%emt 0:05:29]} Nfe8 {[%emt 0:03:54]} 15. Bxe7 {[%emt 0:01:08]} Qxe7 {[%emt 0:00:02]} 16. Rae1 {[%emt 0:02:00]} Nf6 {[%emt 0:03:12]} 17. Qc2 {[%emt 0:00:49]} Na6 {[%emt 0:00:43]} 18. Na2 {[%emt 0:08:45]} Qe8 {[%emt 0:01:44]} 19. b3 {[%emt 0:00:16]} g6 {[%emt 0:00:26]} 20. Kg2 {[%emt 0:01:42]} Kg7 {[%emt 0:01:41]} 21. Rh1 {[%emt 0:03:00]} Qe5 {[%emt 0:00:27]} 22. Rb1 {[%emt 0:05:52]} Ng8 {[%emt 0:04:25]} 23. Qb2 {[%emt 0:01:26]} Nh6 {[%emt 0:03:04]} 24. Nc3 {[%emt 0:01:42]} Nc7 {[%emt 0:07:22]} 25. Nb5 {[%emt 0:02:03]} Bxb5 {[%emt 0:00:37]} 26. axb5 {[%emt 0:00:31]} Qxb2 {[%emt 0:00:07]} 27. Rxb2 {[%emt 0:00:02]} Kf6 {[%emt 0:00:05]} 28. Ra1 {[%emt 0:00:43]} a6 {[%emt 0:00:03]} 29. b6 {[%emt 0:00:25]} Na8 {[%emt 0:01:40]} 30. b4 {[%emt 0:00:07]} Rfc8 {[%emt 0:00:04]} 31. Ne6 {[%emt 0:01:06]} cxb4 {[%emt 0:00:24]} 32. Rxb4 {[%emt 0:00:14]} Nf7 {[%emt 0:00:11]} 33. Ra5 {[%emt 0:00:59]} Ne5 {[%emt 0:01:01]} 34. c5 {[%emt 0:00:12]} dxc5 {[%emt 0:00:32]} 35. Nxc5 {[%emt 0:00:24]} Rd8 {[%emt 0:00:20]} 36. Bd1 {[%emt 0:00:53]} Rd6 {[%emt 0:00:41]} 37. Na4 {[%emt 0:00:33]} Nd7 {[%emt 0:00:20]} 38. Bb3 {[%emt 0:00:11]} Naxb6 {[%emt 0:00:18]} 39. Nxb6 Nxb6 40. Rc5 {[%emt 0:00:32]} Nd7 {[%emt 0:01:58]} 41. Rc7 {[%emt 0:50:32]} b5 {[%emt 0:23:37]} 42. Ra7 {[%emt 0:00:00]} Rc8 {[%emt 0:01:47]} 43. f3 {[%emt 0:00:00]} Rc3 {[%emt 0:01:38]} 44. g4 {[%emt 0:00:00]} Rxe3 {[%emt 0:07:23]} 45. fxe4 {[%emt 0:00:00]} fxe4 {[%emt 0:03:19]} 46. Kf2 {[%emt 0:00:00]} Rh3 {[%emt 0:00:56]} 47. Bd1 {[%emt 0:00:00]} Rd3 {[%emt 0:07:05]} 48. Be2 {[%emt 0:00:00]} e3+ {[%emt 0:02:17]} 49. Kf3 {[%emt 0:00:00]} R3xd5 {[%emt 0:01:43]} 50. Rf4+ {[%emt 0:00:00]} Ke7 {[%emt 0:02:36]} 51. Re4+ {[%emt 0:00:00]} Kd8 {[%emt 0:00:29]} 52. Rxe3 {[%emt 0:00:21]} h6 {[%emt 0:03:02]} 53. Kg3 {[%emt 0:02:14]} Rd2 {[%emt 0:01:03]} 54. g5 {[%emt 0:00:53]} hxg5 {[%emt 0:00:20]} 55. hxg5 {[%emt 0:00:02]} R2d5 {[%emt 0:00:15]} 56. Kg4 {[%emt 0:04:04]} Rc5 {[%emt 0:00:48]} 57. Re4 {[%emt 0:00:58]} Ne5+ {[%emt 0:00:41]} 58. Kf4 {[%emt 0:00:16]} Nd7 {[%emt 0:00:27]} 59. Bg4 {[%emt 0:00:18]} Rcc6 {[%emt 0:00:36]} 60. Ra8+ {[%emt 0:01:03]} Rc8 {[%emt 0:00:06]} 61. Re8+ {[%emt 0:00:38]} Kxe8 {[%emt 0:00:04]} 62. Rxc8+ {[%emt 0:00:03]} Ke7 {[%emt 0:00:02]} 63. Rc7 {[%emt 0:00:07]} Rd4+ {[%emt 0:01:46]} 64. Kg3 {[%emt 0:00:01]} a5 {[%emt 0:00:06]} 65. Ra7 {[%emt 0:01:01]} a4 {[%emt 0:00:04]} 66. Rb7 {[%emt 0:01:13]} b4 {[%emt 0:00:43]} 67. Bxd7 {[%emt 0:00:20]} Rxd7 {[%emt 0:00:03]} 68. Rxb4 {[%emt 0:00:06]} Ra7 {[%emt 0:00:04]} 69. Kf4 {[%emt 0:00:21]} a3 {[%emt 0:00:30]} 70. Rb1 {[%emt 0:00:02]} a2 {[%emt 0:00:21]} 71. Ra1 {[%emt 0:00:01]} Ke6 {[%emt 0:00:04]} 72. Ke4 {[%emt 0:02:07]} Ra4+ {[%emt 0:01:22]} 73. Kd3 {[%emt 0:00:05]} Kf5 {[%emt 0:00:02]} 74. Kc3 {[%emt 0:00:43]} Kxg5 {[%emt 0:00:05]} 75. Kb3 {[%emt 0:00:03]} Ra6 {[%emt 0:00:55]} 76. Kb2 {[%emt 0:00:03]} Kf4 {[%emt 0:02:49]} 77. Rf1+ {[%emt 0:00:04]} Kg3 {[%emt 0:00:00]} 78. Ka1 {[%emt 0:00:02]} g5 {[%emt 0:00:00]} 79. Rg1+ {[%emt 0:00:30]} Kf4 {[%emt 0:00:00]} 80. Rf1+ {[%emt 0:00:07]} Ke3 {[%emt 0:00:00]} 81. Rf5 {[%emt 0:00:53]} g4 {[%emt 0:00:00]} 82. Rg5 {[%emt 0:00:02]} Kf3 {[%emt 0:00:00]} 83. Rf5+ {[%emt 0:00:06]} Kg2 {[%emt 0:00:00]} 84. Rg5 {[%emt 0:00:07]} g3 {[%emt 0:00:00]} 85. Rg8 {[%emt 0:00:07]} Kf2 {[%emt 0:00:00]} 86. Rf8+ {[%emt 0:00:03]} Kg1 {[%emt 0:00:00]} 87. Rg8 {[%emt 0:00:14]} g2 {[%emt 0:00:00]} 88. Rf8 {[%emt 0:00:27]} Ra3 {[%emt 0:00:29]} 0-1

[Event "4NCL Div 1 2024-25"]
[Site "England"]
[Date "2025.02.15"]
[Round "5.38"]
[White "Villiers, Thomas"]
[Black "Wall, Tim P"]
[Result "1/2-1/2"]
[Annotator "TA"]
[ECO "D06"]
[WhiteElo "2182"]
[BlackElo "2168"]
[PlyCount "63"]
[EventDate "2024.11.23"]
[EventType "team-tourn"]
[EventCountry "ENG"]
[SourceTitle "playchess.com"]
[Source "ChessBase"]
[SourceQuality "1"]
[TimeControl "40/6000+30:3000+30"]

{[%evp 9,63,20,17,15,19,12,29,0,0,0,32,20,55,44,52,34,49,35,84,95,130,128,132,133,123,103,155,155,144,81,83,72,120,41,96,90,98,102,209,199,213,199,175,0,0,0,107,91,82,0,0,0,0,0,0,0]} 1. d4 {[%emt 0:10:08]} d5 {[%emt 0:11:34]} 2. Nf3 {[%emt 0:00:18]} Bf5 {[%emt 0:00:43]} 3. c4 {[%emt 0:01:17]} e6 {[%emt 0:00:10]} 4. Nc3 {[%emt 0:03:04]} Nc6 {[%emt 0:00:48]} 5. Qa4 {[%emt 0:03:40]} Bb4 {[%emt 0:08:44]} 6. a3 {[%emt 1:25:03] D06: Queen's Gambit: Symmetrical and Baltic Defences.} Bxc3+ {[%emt 0:05:21]} 7. bxc3 {[%emt 0:00:00]} Nf6 $146 {[%emt 0:01:28]} ({Predecessor:} 7... Nge7 8. Nh4 O-O 9. Nxf5 Nxf5 10. e3 e5 11. cxd5 Qxd5 12. Qb5 Qe4 13. Qd3 Qg4 {1-0 Solomon,K (2271)-Sultanbek,Z (2098) Titled Tuesday intern op 17th Sep Late blitz 2024 (7)}) 8. Ne5 {[%emt 0:00:00] White has an edge.} O-O {[%emt 0:04:57]} 9. Nxc6 {[%emt 0:00:00]} Qd7 {[%emt 0:01:03] [#]} 10. f3 $1 {[%emt 0:00:00][%cal Og2g4]} bxc6 {[%emt 0:02:21]} (10... Bg6 11. g4) 11. g4 {[%emt 0:00:00]} Bg6 {[%emt 0:01:11][%cal Oe6e5]} 12. h4 $36 {[%emt 0:00:00][%mdl 2048] White is pushing.} h5 {[%emt 0:02:54]} 13. g5 {[%emt 0:00:00]} Ne8 {[%emt 0:03:44]} (13... Nh7 $14 {might be stronger.}) 14. c5 $16 {[%emt 0:00:00]} Bf5 {[%emt 0:14:17][%cal Oe6e5] Black is weak on the dark squares} 15. Bf4 {[%emt 0:00:00]} f6 {[%emt 0:02:07]} 16. e3 {[%emt 0:00:00]} a5 {[%emt 0:07:41]} 17. Rh2 {[%emt 0:00:00]} Rf7 {[%emt 0:01:21]} (17... Rb8 $142) 18. O-O-O {[%emt 0:00:00]} Re7 {[%emt 0:03:05]} 19. gxf6 {[%emt 0:00:00]} (19. Bg3 $142) 19... gxf6 {[%emt 0:00:43][%cal Bg7f6,Bf6e5][%mdl 32]} 20. Rg2+ {[%emt 0:00:00] White attacks} Kh7 {[%emt 0:05:23]} ({Black should play} 20... Ng7) 21. Qb3 {[%emt 0:00:00]} (21. Bd3 $16) 21... Qc8 {[%emt 0:04:26]} (21... Ng7 $14) 22. Bd3 {[%emt 0:00:00] White has more active pieces.} Bxd3 {[%emt 0:08:38]} 23. Rxd3 {[%emt 0:00:00] and Rd1 would now be decisive} e5 {[%emt 0:01:17]} (23... Rg7 $16 24. Rxg7+ Kxg7) 24. dxe5 $18 {[%emt 0:00:00]} fxe5 {[%emt 0:00:28] [#]} 25. Qc2 $1 {[%emt 0:00:00]} Kh8 {[%emt 0:04:17] [#]} (25... exf4 26. Rxd5+) 26. Rxd5 $2 {[%emt 0:05:33]} cxd5 $11 {[%emt 0:00:55]} 27. Qg6 $1 {[%emt 0:00:22]} Ng7 {[%emt 0:05:31] [#]} ({Weaker is} 27... exf4 28. Qg8#) (27... Rg7 $1 $11 28. Bxe5 Qd7) 28. Bxe5 $1 $16 {[%emt 0:00:07][%mdl 512] White threatens Qh6+ and mate.} Qf8 {[%emt 0:00:37] [#]} 29. Qxh5+ {[%emt 0:00:54]} ({White should play} 29. Bd4 $1 $16) 29... Kg8 $11 {[%emt 0:00:06] The position is equal.} 30. Bxg7 {[%emt 0:02:52]} Rxg7 {[%emt 0:00:23] Successful Defense Black} 31. Qxd5+ {[%emt 0:00:22]} Kh8 {[%emt 0:01:50]} 32. Qh5+ {[%emt 0:00:09] Black defended with fortune.   Weighted Error Value: White=0.19 (very precise) /Black=0.26 (precise)   Missed win:     	White=1     	---        Mistake:       	White=3     	Black=6      Inaccurate:     	White=1     	Black=3      OK:         	White=6     	Black=6      Best:        	White=6     	Black=1      Strong:       	White=2     	---        Brilliant:      	White=1     	---} 1/2-1/2

[Event "4NCL Div 1 2024-25"]
[Site "England"]
[Date "2025.02.15"]
[Round "5.39"]
[White "Carroll, Thomas"]
[Black "Yoon, Jacob D"]
[Result "1-0"]
[Annotator "ChessBase"]
[ECO "D07"]
[WhiteElo "2126"]
[BlackElo "2270"]
[PlyCount "111"]
[EventDate "2024.11.23"]
[EventType "team-tourn"]
[EventCountry "ENG"]
[SourceTitle "playchess.com"]
[Source "ChessBase"]
[SourceQuality "1"]
[TimeControl "40/6000+30:3000+30"]

1. d4 {[%emt 0:10:03]} d5 {[%emt 0:11:06]} 2. c4 {[%emt 0:00:12]} Nc6 {[%emt 0:00:21]} 3. cxd5 {[%emt 0:00:37]} Qxd5 {[%emt 0:00:07]} 4. e3 {[%emt 0:00:22]} e5 {[%emt 0:00:05]} 5. Nc3 {[%emt 0:00:50]} Bb4 {[%emt 0:00:07]} 6. Bd2 {[%emt 0:00:13]} Bxc3 {[%emt 0:01:07]} 7. Bxc3 {[%emt 0:00:06]} exd4 {[%emt 0:00:36]} 8. Ne2 {[%emt 0:00:19]} Nge7 {[%emt 0:05:12]} 9. Nxd4 {[%emt 0:01:11]} Nxd4 {[%emt 0:00:56]} 10. Qxd4 {[%emt 0:02:32]} Qxd4 {[%emt 0:00:01]} 11. Bxd4 {[%emt 0:00:15]} O-O {[%emt 0:00:05]} 12. Be2 {[%emt 0:05:38]} Be6 {[%emt 0:02:32]} 13. O-O {[%emt 0:02:48]} Bd5 {[%emt 0:17:02]} 14. Rfc1 {[%emt 0:05:05]} c6 {[%emt 0:06:58]} 15. f3 {[%emt 0:04:43]} Ng6 {[%emt 0:05:36]} 16. b4 {[%emt 0:06:17]} Rfe8 {[%emt 0:17:16]} 17. Kf2 {[%emt 0:03:28]} f6 {[%emt 0:03:26]} 18. a4 {[%emt 0:05:24]} a6 {[%emt 0:01:11]} 19. g3 {[%emt 0:05:39]} Nf8 {[%emt 0:10:08]} 20. h4 {[%emt 0:01:52]} Ne6 {[%emt 0:08:57]} 21. Bb2 {[%emt 0:03:18]} Nc7 {[%emt 0:00:31]} 22. g4 {[%emt 0:06:06]} Bf7 {[%emt 0:02:53]} 23. Bd4 {[%emt 0:02:18]} Rec8 {[%emt 0:03:19]} 24. Rab1 {[%emt 0:04:14]} Be8 {[%emt 0:01:00]} 25. Bc4+ {[%emt 0:02:22]} Bf7 {[%emt 0:00:08]} 26. Be2 {[%emt 0:04:04]} Be8 {[%emt 0:00:02]} 27. h5 {[%emt 0:00:39]} h6 {[%emt 0:02:38]} 28. Bd3 {[%emt 0:02:41]} Bd7 {[%emt 0:00:27]} 29. Kg3 {[%emt 0:05:02]} b5 {[%emt 0:00:38]} 30. a5 {[%emt 0:02:32]} Ne6 {[%emt 0:03:18]} 31. Bb6 {[%emt 0:00:49]} Re8 {[%emt 0:01:12]} 32. Rd1 {[%emt 0:01:20]} Re7 {[%emt 0:00:41]} 33. Bf5 {[%emt 0:03:34]} Nf8 {[%emt 0:00:44]} 34. Be4 {[%emt 0:01:17]} Rc8 {[%emt 0:01:05]} 35. Bc5 {[%emt 0:00:45]} Rf7 {[%emt 0:00:51]} 36. Bg6 {[%emt 0:00:25]} Be6 {[%emt 0:00:11]} 37. Bxf7+ {[%emt 0:00:13]} Kxf7 {[%emt 0:00:01]} 38. Bxf8 {[%emt 0:00:51]} Kxf8 {[%emt 0:00:15]} 39. Rd4 {[%emt 0:04:18]} Ke7 {[%emt 0:00:13]} 40. Rc1 {[%emt 0:02:30]} Rc7 {[%emt 0:01:35]} 41. Rc5 {[%emt 0:56:04]} Bc8 {[%emt 0:50:32]} 42. Kf4 {[%emt 0:00:50]} Bd7 {[%emt 0:01:09]} 43. e4 {[%emt 0:00:27]} Rc8 {[%emt 0:00:08]} 44. e5 {[%emt 0:01:00]} Rf8 {[%emt 0:00:02]} 45. exf6+ {[%emt 0:01:01]} gxf6 {[%emt 0:00:02]} 46. Rxd7+ {[%emt 0:00:00]} Kxd7 {[%emt 0:00:00]} 47. Kf5 {[%emt 0:00:00]} Rg8 {[%emt 0:00:00]} 48. Kxf6 {[%emt 0:00:00]} Rf8+ {[%emt 0:00:00]} 49. Kg7 {[%emt 0:00:00]} Rxf3 {[%emt 0:00:00]} 50. Kxh6 {[%emt 0:00:00]} Rf4 {[%emt 0:00:00]} 51. g5 {[%emt 0:00:00]} Rxb4 {[%emt 0:00:00]} 52. g6 {[%emt 0:00:00]} Rg4 {[%emt 0:00:00]} 53. Rg5 {[%emt 0:00:00]} Rxg5 {[%emt 0:00:00]} 54. Kxg5 {[%emt 0:00:00]} Ke7 {[%emt 0:00:00]} 55. h6 {[%emt 0:00:00]} Kf8 {[%emt 0:00:00]} 56. Kf6 {[%emt 0:00:00]} 1-0

[Event "4NCL Div 1 2024-25"]
[Site "England"]
[Date "2025.02.15"]
[Round "5.40"]
[White "Pang, Ethan"]
[Black "Li, Harry"]
[Result "0-1"]
[Annotator "ChessBase"]
[ECO "C56"]
[WhiteElo "2303"]
[BlackElo "2203"]
[PlyCount "78"]
[EventDate "2024.11.23"]
[EventType "team-tourn"]
[EventCountry "ENG"]
[SourceTitle "playchess.com"]
[Source "ChessBase"]
[SourceQuality "1"]
[TimeControl "40/6000+30:3000+30"]

1. e4 {[%emt 0:11:57]} e5 {[%emt 0:10:04]} 2. Nf3 {[%emt 0:00:45]} Nc6 {[%emt 0:00:02]} 3. Bc4 {[%emt 0:00:33]} Nf6 {[%emt 0:00:03]} 4. d4 {[%emt 0:00:54]} exd4 {[%emt 0:00:04]} 5. e5 {[%emt 0:00:36]} d5 {[%emt 0:00:03]} 6. Bb5 {[%emt 0:00:50]} Ne4 {[%emt 0:00:05]} 7. Nxd4 {[%emt 0:00:43]} Bd7 {[%emt 0:00:05]} 8. Bxc6 {[%emt 0:00:44]} bxc6 {[%emt 0:00:02]} 9. O-O {[%emt 0:01:17]} Bc5 {[%emt 0:00:03]} 10. Be3 {[%emt 0:01:31]} Qe7 {[%emt 0:04:36]} 11. Re1 {[%emt 0:01:28]} O-O {[%emt 0:04:56]} 12. f3 {[%emt 0:01:31]} Ng5 {[%emt 0:00:06]} 13. Qd2 {[%emt 0:01:36]} Ne6 {[%emt 0:01:45]} 14. Nc3 {[%emt 0:05:41]} Rab8 {[%emt 0:13:33]} 15. Rab1 {[%emt 0:13:56]} Nxd4 {[%emt 0:14:01]} 16. Bxd4 {[%emt 0:00:30]} Bf5 {[%emt 0:00:33]} 17. Ne2 {[%emt 0:09:17]} Bb4 {[%emt 0:07:12]} 18. Bc3 {[%emt 0:02:40]} Qc5+ {[%emt 0:00:25]} 19. Nd4 {[%emt 0:01:53]} Bxc3 {[%emt 0:03:45]} 20. Qxc3 {[%emt 0:00:53]} Qxc3 {[%emt 0:00:06]} 21. bxc3 {[%emt 0:00:04]} Bd7 {[%emt 0:00:21]} 22. Nb3 {[%emt 0:07:08]} Bf5 {[%emt 0:02:29]} 23. Rec1 {[%emt 0:02:03]} h5 {[%emt 0:01:00]} 24. Nc5 {[%emt 0:05:38]} Rb6 {[%emt 0:02:41]} 25. Rb3 {[%emt 0:03:05]} g5 {[%emt 0:06:03]} 26. h3 {[%emt 0:05:43]} h4 {[%emt 0:01:40]} 27. Kf2 {[%emt 0:08:19]} Re8 {[%emt 0:03:27]} 28. f4 {[%emt 0:03:27]} gxf4 {[%emt 0:01:59]} 29. Kf3 {[%emt 0:01:33]} Rxe5 {[%emt 0:03:12]} 30. Kxf4 {[%emt 0:01:52]} f6 {[%emt 0:00:03]} 31. Ra3 {[%emt 0:02:22]} Rb2 {[%emt 0:10:08]} 32. Ra6 {[%emt 0:03:38]} Kf7 {[%emt 0:06:06]} 33. Rxa7 {[%emt 0:09:23]} Bxc2 {[%emt 0:01:09]} 34. Rxc7+ {[%emt 0:01:32]} Kg6 {[%emt 0:00:02]} 35. Rxc6 {[%emt 0:01:55]} Bf5 {[%emt 0:00:04]} 36. Rf1 {[%emt 0:00:44]} Rxg2 {[%emt 0:00:49]} 37. Kf3 {[%emt 0:00:45]} Bxh3 {[%emt 0:01:01]} 38. Rh1 {[%emt 0:00:28]} Rg3+ {[%emt 0:00:24]} 39. Kf2 {[%emt 0:00:04]} Rxc3 {[%emt 0:02:10]} 0-1